bitfinex-derivatives/quotes_ETHF0:USTF0_20250807
["timestamp","ask_amount","ask_price","bid_price","bid_amount"]
[1754546000565,59.8916,3680.8,3680.7,1.7358]
[1754546000768,41.4086,3680.8,3680.7,1.7358]
[1754546000970,59.8916,3680.8,3680.7,1.7358]
[1754546006065,61.64095595,3680.8,3680.7,1.7358]
[1754546011269,61.33345595,3680.8,3680.7,1.7358]
[1754546012165,42.54935595,3680.8,3680.7,1.7358]
[1754546012370,0.21772326,3681.6,3681.2,0.6793]
[1754546012371,2.74925595,3681.3,3681.2,0.6793]
[1754546012573,21.23025595,3681.3,3681.2,1.7114]
[1754546012978,62.03025595,3681.3,3681.2,1.7114]
[1754546014280,43.54925595,3681.3,3681.2,1.7114]
[1754546014574,62.03025595,3681.3,3681.2,1.7114]
[1754546015578,62.02925595,3681.3,3681.2,1.7114]
[1754546018282,43.54925595,3681.3,3681.2,1.7114]
[1754546018475,62.02825595,3681.3,3681.2,1.7114]
[1754546019789,0.69,3681.8,3681.7,1.7114]
[1754546020082,61.71835595,3681.8,3681.7,1.7114]
[1754546020283,62.74654669,3681.8,3681.7,1.7114]
[1754546020886,43.54925595,3681.8,3681.7,1.7114]
[1754546021182,62.02725595,3681.8,3681.7,1.7114]
[1754546023586,61.72525595,3681.8,3681.7,1.7114]
[1754546023787,62.02725595,3681.8,3681.7,1.7114]
[1754546044108,40.8,3681.8,3681.7,1.7114]
[1754546044300,59.272,3681.8,3681.7,1.7114]
[1754546045099,18.472,3681.8,3681.7,1.7114]
[1754546045602,0.4742,3681.9,3681.8,2.2689]
[1754546045895,18.9462,3681.9,3681.8,2.2689]
[1754546048208,18.9442,3681.9,3681.8,2.2689]
[1754546048604,19.2448,3681.9,3681.8,2.2689]
[1754546050411,18.6582,3681.9,3681.8,2.2689]
[1754546051002,18.9442,3681.9,3681.8,2.2689]
[1754546052813,19.2448,3681.9,3681.8,2.2689]
[1754546053014,19.4415,3681.9,3681.8,2.2689]
[1754546058518,21.19085595,3681.9,3681.8,2.2689]
[1754546060223,21.18785595,3681.9,3681.8,2.2689]
[1754546061525,20.88725595,3681.9,3681.8,2.2689]
[1754546061824,20.69055595,3681.9,3681.8,2.2689]
[1754546062024,41.086,3682.1,3682.0,2.26887]
[1754546062225,59.553,3682.1,3682.0,2.26887]
[1754546062426,59.8536,3682.1,3682.0,2.26887]
[1754546063629,61.01635595,3682.1,3682.0,2.26887]
[1754546064035,61.30235595,3682.1,3682.0,2.26887]
[1754546064334,61.30135595,3682.1,3682.0,2.26887]
[1754546064532,40.8,3682.1,3682.0,2.26887]
[1754546064838,20.88625595,3682.1,3682.0,2.26887]
[1754546065037,21.18685595,3682.1,3682.0,2.26887]
[1754546065525,18.6542,3682.1,3682.0,2.26887]
[1754546065931,19.4375,3682.1,3682.0,2.26887]
[1754546066125,18.466,3682.1,3682.0,2.26887]
[1754546066326,43.13595595,3682.6,3682.5,1.7258]
[1754546066526,61.60095595,3682.6,3682.5,1.7258]
[1754546067028,43.13595595,3682.6,3682.5,1.7258]
[1754546067233,61.60095595,3682.6,3682.5,2.2688]
[1754546067529,61.60095595,3682.6,3682.5,1.7258]
[1754546067935,61.30035595,3682.6,3682.5,1.7258]
[1754546068127,61.60095595,3682.6,3682.5,1.7258]
[1754546070138,61.29935595,3682.6,3682.5,1.7258]
[1754546070441,0.28886,3682.7,3682.6,1.05779]
[1754546070630,0.71814619,3683.2,3683.1,0.7117]
[1754546070835,0.4689,3683.3,3683.2,2.2669]
[1754546071136,41.51805457,3683.5,3683.2,2.2669]
[1754546071338,18.9329,3683.6,3683.5,1.25455]
[1754546071541,18.9329,3683.6,3683.5,2.26685]
[1754546071735,19.2305,3683.6,3683.5,2.26685]
[1754546071942,60.0305,3683.6,3683.5,2.26685]
[1754546072343,60.0305,3683.6,3683.5,1.724]
[1754546072945,61.77785595,3683.6,3683.5,1.724]
[1754546074242,59.262,3683.6,3683.5,1.4161]
[1754546074448,59.8404,3683.6,3683.5,1.724]
[1754546074746,61.58975595,3683.6,3683.5,1.724]
[1754546082644,61.58575595,3683.6,3683.5,1.724]
[1754546083747,59.5388,3683.6,3683.5,1.724]
[1754546083948,59.8364,3683.6,3683.5,1.724]
[1754546084644,59.5388,3683.6,3683.5,1.724]
[1754546085251,41.0808,3683.6,3683.5,1.724]
[1754546085455,2.21825595,3683.9,3683.8,0.5048]
[1754546085648,20.67425595,3683.9,3683.8,1.724]
[1754546085852,0.9545,3684.2,3684.1,0.7117]
[1754546086155,60.2105,3684.2,3684.1,1.724]
[1754546086548,0.4689,3684.2,3684.1,1.724]
[1754546088555,0.9545,3684.2,3684.1,1.724]
[1754546090355,0.6569,3684.2,3684.1,1.724]
[1754546090555,18.9229,3684.3,3684.2,2.26675]
[1754546090756,40.8,3684.7,3684.6,0.54269]
[1754546090955,61.58175595,3684.7,3684.6,0.54269]
[1754546091361,61.58175595,3684.7,3684.6,1.24709]
[1754546091561,61.58175595,3684.7,3684.6,1.55499]
[1754546091963,61.58175595,3684.7,3684.6,0.85059]
[1754546092156,43.12775595,3684.7,3684.6,0.54269]
[1754546092357,61.58175595,3684.7,3684.6,0.54269]
[1754546093666,61.58175595,3684.7,3684.6,0.82519]
[1754546094365,43.12775595,3684.7,3684.6,0.82519]
[1754546094568,43.12775595,3684.7,3684.6,1.24709]
[1754546094960,43.12775595,3684.7,3683.9,0.4219]
[1754546095163,0.9545,3684.4,3684.3,0.54272]
[1754546095365,21.15685595,3684.4,3684.3,0.54272]
[1754546096659,0.5784,3684.3,3684.1,0.54276]
[1754546096870,19.4065,3684.2,3684.1,0.54276]
[1754546097761,19.4065,3684.2,3684.1,0.82526]
[1754546097965,19.4065,3684.2,3684.1,1.24716]
[1754546098366,19.4065,3684.2,3684.1,1.55506]
[1754546098769,21.15585595,3684.2,3684.1,0.54276]
[1754546098966,21.15585595,3684.2,3684.1,1.31196]
[1754546099168,21.15585595,3684.2,3684.1,1.61216]
[1754546099368,21.15585595,3684.2,3684.1,2.29516]
[1754546099766,21.15585595,3684.2,3684.1,0.54276]
[1754546100164,19.4065,3684.2,3684.1,2.29516]
[1754546100360,21.15585595,3684.2,3684.1,2.29516]
[1754546100567,21.15585595,3684.2,3684.1,0.54276]
[1754546100776,21.15585595,3684.2,3684.0,0.54277]
[1754546101069,2.76245595,3684.1,3684.0,0.54277]
[1754546101264,2.76245595,3684.1,3684.0,1.61217]
[1754546101460,2.76245595,3684.1,3684.0,2.29517]
[1754546103072,2.76245595,3684.1,3684.0,2.00217]
[1754546104075,2.76245595,3684.1,3684.0,2.29517]
[1754546105769,2.76245595,3684.1,3684.0,0.4933]
[1754546105970,0.5014,3683.5,3683.4,1.69556]
[1754546106171,19.4641,3683.5,3683.4,2.29526]
[1754546106573,60.2641,3683.5,3683.4,2.29526]
[1754546106768,60.2641,3683.5,3683.4,1.14976]
[1754546106974,60.2641,3683.5,3683.4,1.61226]
[1754546107174,0.708,3683.3,3683.2,0.84309]
[1754546107378,21.21345595,3683.3,3683.2,0.84309]
[1754546107573,21.21345595,3683.3,3683.2,1.61229]
[1754546107771,21.21345595,3683.3,3683.2,2.00229]
[1754546107974,21.21345595,3683.3,3683.2,2.29529]
[1754546108674,62.01345595,3683.3,3683.2,2.29529]
[1754546108872,61.70835595,3683.3,3683.2,2.29529]
[1754546109069,59.959,3683.3,3683.2,2.29529]
[1754546110375,59.251,3683.3,3683.2,2.29529]
[1754546110970,59.5506,3683.3,3683.2,2.29529]
[1754546111182,59.8557,3683.3,3683.2,1.7524]
[1754546111377,59.251,3683.3,3683.2,1.4594]
[1754546111582,59.251,3683.3,3683.2,1.7524]
[1754546111885,59.8557,3683.3,3683.2,0.9969]
[1754546112078,59.8557,3683.3,3683.2,1.7524]
[1754546112479,59.8557,3683.3,3683.2,1.4594]
[1754546112776,59.8557,3683.3,3683.2,1.7524]
[1754546114484,40.8,3683.3,3683.2,1.7524]
[1754546114886,59.252,3683.3,3683.2,1.7524]
[1754546115885,40.8,3683.3,3683.2,1.7524]
[1754546116183,0.2996,3684.1,3683.6,0.7901]
[1754546116385,1.0131,3684.1,3684.0,1.7524]
[1754546116585,19.16,3684.1,3684.0,1.7524]
[1754546116981,41.508,3684.1,3684.0,1.7524]
[1754546117183,59.96,3684.1,3684.0,1.7524]
[1754546117382,41.2084,3684.1,3684.0,1.7524]
[1754546117581,59.4586,3684.1,3684.0,1.7524]
[1754546118084,18.452,3684.1,3684.0,1.7524]
[1754546118288,18.452,3684.1,3683.7,1.74935595]
[1754546118289,18.452,3684.3,3684.2,1.7524]
[1754546118694,18.6586,3684.4,3684.3,1.7524]
[1754546118991,18.9582,3684.4,3684.3,1.7524]
[1754546119182,40.8,3684.4,3684.3,1.7524]
[1754546121191,41.0996,3684.4,3684.3,1.7524]
[1754546121787,41.4047,3684.4,3684.3,1.7524]
[1754546121987,41.0996,3684.4,3684.3,1.7524]
[1754546122185,40.8,3684.4,3684.3,1.7524]
[1754546122386,1.708,3685.0,3684.9,1.2526]
[1754546122691,20.4641,3685.0,3684.9,1.7524]
[1754546122887,61.2641,3685.0,3684.9,1.7524]
[1754546124792,61.2641,3685.0,3684.9,1.4594]
[1754546125595,0.3051,3684.9,3684.6,1.0694]
[1754546125893,1.0131,3684.7,3684.6,1.1527]
[1754546126193,1.0131,3684.7,3684.6,1.4457]
[1754546126393,1.0131,3684.7,3684.6,1.7524]
[1754546127295,20.19935595,3684.8,3684.6,0.6902]
[1754546127500,20.70555595,3684.8,3684.7,1.7524]
[1754546127693,20.40395595,3684.8,3684.7,1.7524]
[1754546128490,20.70355595,3684.8,3684.7,1.7524]
[1754546129094,21.21385595,3684.8,3684.7,1.7524]
[1754546130193,21.21385595,3684.8,3684.7,1.4594]
[1754546130389,0.6103,3684.7,3684.3,0.5663]
[1754546130594,1.007,3684.4,3684.3,1.7154]
[1754546131001,0.4967,3684.4,3684.3,1.7154]
[1754546131199,0.1966,3684.4,3684.3,1.7154]
[1754546133203,0.4967,3684.4,3684.3,1.7154]
[1754546133394,0.1966,3684.4,3684.3,1.7154]
[1754546133589,20.50655595,3684.7,3684.6,0.5024]
[1754546133590,21.00325595,3684.7,3684.6,0.5024]
[1754546133796,21.00325595,3684.7,3684.6,1.7154]
[1754546134695,21.00325595,3684.7,3684.4,0.54272]
[1754546134696,20.69305595,3684.7,3684.4,0.54272]
[1754546134902,21.20335595,3684.7,3684.6,1.7154]
[1754546136999,43.54935595,3685.0,3684.9,0.6987]
[1754546137205,60.5562,3685.0,3684.9,1.7154]
[1754546137807,60.8563,3685.0,3684.9,1.7154]
[1754546138309,62.60565595,3685.0,3684.9,1.7154]
[1754546139003,62.60565595,3685.0,3684.9,1.4319]
[1754546139195,1.007,3684.8,3684.7,1.4319]
[1754546139401,1.007,3684.8,3684.7,1.7154]
[1754546140997,0.4967,3684.8,3684.7,1.7154]
[1754546141204,1.0,3685.0,3684.9,1.7154]
[1754546143502,0.5336,3685.0,3684.9,1.7154]
[1754546144909,0.5336,3685.0,3684.9,7.7154]
[1754546145105,0.3001,3685.7,3685.6,1.24124]
[1754546145306,0.3001,3685.7,3685.6,2.25794]
[1754546145506,41.2967,3685.7,3685.6,2.25794]
[1754546145713,42.0337,3685.7,3685.6,2.25794]
[1754546145906,1.7224,3685.7,3685.6,2.25794]
[1754546148214,20.1664,3686.1,3686.0,1.69158]
[1754546148406,20.1664,3686.1,3686.0,2.25788]
[1754546148607,20.1664,3686.1,3686.0,1.52398]
[1754546148906,20.1664,3686.1,3685.3,1.74935595]
[1754546148907,19.1293,3686.1,3685.9,0.54249]
[1754546149112,1.7224,3686.0,3685.9,0.54249]
[1754546149511,1.7224,3686.0,3685.9,0.82529]
[1754546149914,1.7224,3685.9,3685.8,0.54251]
[1754546150104,1.0371,3685.8,3685.7,0.54252]
[1754546150307,1.7224,3685.8,3685.7,0.54252]
[1754546150814,1.7224,3685.8,3685.7,1.02602]
[1754546151014,1.7224,3685.8,3685.7,1.95622]
[1754546152222,42.5224,3685.8,3685.7,0.6798]
[1754546152518,1.7224,3685.7,3685.6,0.54254]
[1754546153425,1.7224,3685.7,3685.6,0.82534]
[1754546153920,1.7224,3685.7,3685.6,0.2828]
[1754546154120,1.7224,3685.7,3685.6,1.7154]
[1754546155115,0.4852,3685.7,3685.6,1.7154]
[1754546155316,40.8,3685.8,3685.7,2.25793]
[1754546155512,0.1966,3685.8,3685.7,2.25793]
[1754546155715,1.2121,3685.8,3685.7,2.25793]
[1754546156116,1.5223,3685.8,3685.7,2.25793]
[1754546156919,1.7224,3685.8,3685.7,2.25793]
[1754546159725,1.4122,3685.8,3685.7,2.25793]
[1754546160120,0.4852,3685.8,3685.7,2.25793]
[1754546160427,1.6857,3686.2,3686.1,2.28186]
[1754546160620,20.1247,3686.2,3686.1,1.7394]
[1754546160822,60.9247,3686.2,3686.1,1.7394]
[1754546161126,60.9247,3686.2,3686.1,0.5066]
[1754546161324,60.9247,3686.2,3686.1,0.3011]
[1754546163024,60.9247,3686.2,3686.1,1.7394]
[1754546164325,60.9247,3686.2,3686.1,0.7011]
[1754546164529,59.9275,3686.2,3685.9,0.54249]
[1754546164729,1.6857,3686.1,3686.0,0.7011]
[1754546164925,1.6857,3686.1,3686.0,1.7394]
[1754546165327,20.1247,3686.1,3686.0,1.7394]
[1754546165730,20.1247,3686.1,3685.7,0.54252]
[1754546165926,0.6885,3685.8,3685.7,1.03812]
[1754546166131,1.6857,3685.8,3685.7,2.28192]
[1754546167133,1.6857,3685.7,3685.6,0.84364]
[1754546167426,2.43785595,3685.7,3685.4,0.54256]
[1754546167629,1.2606,3685.5,3685.4,1.98676]
[1754546167832,1.6857,3685.5,3685.4,2.28196]
[1754546168127,1.4035,3685.5,3685.4,2.28196]
[1754546168835,1.6857,3685.5,3685.4,2.28196]
[1754546169036,1.6857,3685.5,3685.4,1.7394]
[1754546170732,1.6857,3685.5,3685.4,0.2055]
[1754546170931,1.3959,3685.4,3685.3,0.3011]
[1754546171132,1.6857,3685.4,3685.3,1.7394]
[1754546172531,0.6885,3685.4,3685.1,0.3011]
[1754546172735,1.74935595,3685.6,3685.2,1.4442]
[1754546172736,1.6857,3685.3,3685.2,1.4442]
[1754546173239,3.43505595,3685.3,3685.2,0.4]
[1754546173439,3.43505595,3685.3,3685.2,0.7011]
[1754546173640,3.43505595,3685.3,3685.2,1.4442]
[1754546173841,3.43505595,3685.3,3685.2,1.7394]
[1754546176534,3.43505595,3685.3,3684.9,0.54264]
[1754546176730,0.9784,3685.1,3685.0,1.7394]
[1754546176938,1.6857,3685.1,3685.0,1.7394]
[1754546181846,1.6857,3685.1,3685.0,0.9963]
[1754546182441,1.6857,3685.1,3685.0,1.7394]
[1754546182641,60.9247,3685.1,3685.0,1.7394]
[1754546183040,60.9247,3685.1,3685.0,0.3011]
[1754546183236,59.9275,3685.1,3684.7,1.0442]
[1754546183442,1.6857,3684.8,3684.7,1.4383]
[1754546183838,1.6857,3684.8,3684.7,1.7394]
[1754546184038,1.6857,3684.8,3684.7,0.4897]
[1754546184353,1.6857,3684.5,3684.4,1.7394]
[1754546184645,1.6857,3684.4,3684.3,1.4442]
[1754546184850,1.6857,3684.4,3684.3,1.7394]
[1754546185847,41.515,3685.1,3684.6,0.54268]
[1754546186148,0.6885,3685.1,3685.0,1.7394]
[1754546186345,1.23112,3685.1,3683.7,1.0442]
[1754546186541,0.2043,3684.2,3684.1,2.98732595]
[1754546186740,0.715,3684.6,3684.1,2.98732595]
[1754546186949,0.2043,3684.2,3684.1,2.98732595]
[1754546187150,1.4913,3684.2,3684.1,4.03152595]
[1754546187646,1.2091,3684.2,3684.1,4.03152595]
[1754546187845,1.4913,3684.2,3684.1,4.03152595]
[1754546188745,1.2091,3684.2,3684.1,4.03152595]
[1754546190253,1.6791,3684.2,3684.1,2.28217]
[1754546190953,1.6791,3684.2,3684.1,1.735]
[1754546191446,1.393,3684.1,3684.0,1.4426]
[1754546191750,1.6754,3684.1,3684.0,1.7512]
[1754546200257,0.4749,3684.1,3684.0,1.7512]
[1754546200461,1.6754,3684.5,3684.4,1.7512]
[1754546201456,1.74935595,3684.7,3684.4,1.7512]
[1754546201759,1.6754,3684.6,3684.5,1.7512]
[1754546202357,1.2054,3684.9,3684.8,1.7512]
[1754546202760,1.6754,3684.9,3684.8,1.7512]
[1754546207769,40.8,3685.1,3685.0,1.7512]
[1754546207970,59.243,3685.1,3685.0,1.7512]
[1754546208170,40.8,3685.1,3685.0,1.7512]
[1754546208471,0.7288,3685.4,3685.0,1.7512]
[1754546208472,18.443,3685.4,3685.3,1.149]
[1754546208671,18.443,3685.4,3685.3,1.7512]
[1754546209066,40.8,3685.6,3685.5,1.7512]
[1754546211463,0.7305,3686.2,3685.5,0.3086]
[1754546211659,1.6754,3686.2,3686.1,1.7512]
[1754546211864,20.1174,3686.2,3686.1,1.7512]
[1754546212065,60.9174,3686.2,3686.1,1.7512]
[1754546212762,60.9174,3686.2,3686.1,2.29367]
[1754546212763,42.4754,3686.2,3686.1,2.29367]
[1754546212962,42.4754,3686.2,3686.1,1.7512]
[1754546212963,60.9174,3686.2,3686.1,1.7512]
[1754546214771,60.9174,3686.2,3686.1,1.2445]
[1754546214970,60.9174,3686.2,3686.1,0.8144]
[1754546215160,60.9174,3686.2,3686.1,0.5055]
[1754546215764,60.9174,3686.2,3686.1,0.1969]
[1754546216472,60.9174,3686.2,3686.1,0.5055]
[1754546217560,59.9045,3686.2,3685.7,0.54252]
[1754546217762,1.6754,3685.8,3685.7,1.98512]
[1754546218162,1.6754,3685.8,3685.7,2.29372]
[1754546218863,1.0112,3686.1,3685.7,1.24642]
[1754546219070,20.1322,3686.0,3685.9,2.28679]
[1754546222376,18.9187,3686.0,3685.9,2.28679]
[1754546222971,19.0972,3686.0,3685.9,2.28679]
[1754546223176,18.437,3686.0,3685.9,2.28679]
[1754546223374,41.0881,3686.2,3685.9,1.24649]
[1754546223575,41.5128,3686.2,3686.1,2.28677]
[1754546223773,1.6932,3686.6,3686.5,2.28671]
[1754546223971,3.44255595,3686.6,3686.5,2.28671]
[1754546224173,0.682,3686.6,3686.5,1.24641]
[1754546224473,20.1312,3686.6,3686.5,1.24641]
[1754546224680,60.9312,3686.6,3686.5,1.98401]
[1754546224875,60.9312,3686.6,3686.5,2.28671]
[1754546226276,59.92,3686.6,3686.5,2.28671]
[1754546226581,59.4263,3686.6,3686.5,2.28671]
[1754546226878,59.851,3686.6,3686.5,2.28671]
[1754546228184,59.849,3686.6,3686.5,2.28671]
[1754546228374,60.1371,3686.6,3686.5,2.28671]
[1754546230286,60.4355,3686.6,3686.5,2.28671]
[1754546230886,60.1371,3686.6,3686.5,2.28671]
[1754546231981,60.4355,3686.6,3686.5,2.28671]
[1754546234487,60.4345,3686.6,3686.5,2.28671]
[1754546236594,60.4345,3686.6,3686.5,0.82501]
[1754546236780,60.4345,3686.6,3686.5,0.54241]
[1754546237187,60.4345,3686.6,3686.5,1.12771]
[1754546237492,60.4345,3686.6,3686.5,1.77891]
[1754546237789,60.4345,3686.6,3686.5,2.28671]
[1754546240287,41.7021,3686.6,3686.5,2.28671]
[1754546240488,0.7231,3687.7,3686.9,0.54235]
[1754546240687,0.76068734,3687.8,3685.8,1.35627]
[1754546240688,1.6932,3687.2,3687.1,2.28662]
[1754546240993,62.67555595,3687.2,3687.1,1.7443]
[1754546242284,60.2442,3687.2,3687.1,1.7443]
[1754546242689,60.2442,3687.2,3687.1,1.2893]
[1754546243586,60.2442,3687.2,3687.1,1.7443]
[1754546243787,59.6577,3687.2,3687.1,1.7443]
[1754546243993,41.5128,3687.2,3687.1,1.7443]
[1754546244189,40.8,3687.2,3687.1,1.7443]
[1754546244391,59.232,3687.2,3687.1,1.7443]
[1754546245596,59.6567,3687.2,3687.1,1.7443]
[1754546245998,41.2247,3687.2,3687.1,1.7443]
[1754546246295,59.6557,3687.2,3687.1,1.7443]
[1754546246496,59.9438,3687.2,3687.1,1.7443]
[1754546246797,59.231,3687.2,3687.1,1.7443]
[1754546247098,59.6557,3687.2,3687.1,1.7443]
[1754546247297,59.9438,3687.2,3687.1,1.7443]
[1754546250201,60.2522,3687.2,3687.1,1.7443]
[1754546253498,59.9438,3687.2,3687.1,1.7443]
[1754546253704,60.2727,3687.2,3687.1,1.7443]
[1754546254800,19.9597,3687.2,3687.1,0.704]
[1754546255003,19.1226,3687.2,3687.0,0.54233]
[1754546255301,1.7374,3687.1,3687.0,2.23103]
[1754546257908,1.7374,3687.1,3687.0,1.6887]
[1754546258214,0.6916,3686.6,3686.5,1.2448]
[1754546258409,0.6916,3686.6,3686.5,1.6887]
[1754546258410,3.48675595,3686.6,3686.5,1.6887]
[1754546258910,1.1204,3686.6,3686.5,2.23111]
[1754546259111,0.6916,3686.6,3686.5,2.23111]
[1754546259301,1.429,3686.6,3686.5,1.6887]
[1754546259501,1.7374,3686.6,3686.5,1.6887]
[1754546260605,1.1204,3686.6,3686.5,1.6887]
[1754546260808,0.2046,3686.6,3686.5,1.6887]
[1754546262210,1.7374,3686.6,3686.5,1.6887]
[1754546263012,1.7374,3686.6,3686.5,1.2013]
[1754546263213,1.7374,3686.6,3686.5,1.4907]
[1754546263416,1.7374,3686.6,3686.5,1.6887]
[1754546263713,21.29875595,3686.8,3686.7,1.405]
[1754546264008,21.91575595,3686.8,3686.7,1.6887]
[1754546264203,20.86995595,3686.8,3685.9,1.017]
[1754546264408,1.7374,3686.7,3686.6,1.2448]
[1754546264619,1.7374,3686.7,3686.6,1.6887]
[1754546264909,42.5374,3686.7,3686.6,1.6887]
[1754546265109,42.229,3686.7,3686.6,1.6887]
[1754546265410,40.8,3686.7,3686.6,1.6887]
[1754546266310,19.1206,3686.8,3686.7,1.21408]
[1754546266508,0.6916,3687.3,3687.2,0.1895]
[1754546266809,61.66995595,3687.3,3687.2,1.6887]
[1754546267005,0.4923,3687.1,3687.0,0.5731]
[1754546267311,1.7374,3686.8,3686.7,1.2448]
[1754546267512,20.1664,3686.8,3686.7,1.2448]
[1754546267711,20.1664,3686.8,3686.7,0.7626]
[1754546267905,60.9664,3686.8,3686.7,0.2837]
[1754546269116,1.7374,3686.7,3686.6,0.5731]
[1754546269812,1.7374,3686.7,3686.6,1.2448]
[1754546270018,1.7374,3686.7,3686.6,1.6887]
[1754546271012,1.7374,3686.7,3686.6,1.3993]
[1754546271213,1.7374,3686.7,3686.6,1.6887]
[1754546271410,1.429,3686.7,3686.6,1.6887]
[1754546272207,1.1204,3686.7,3686.6,1.6887]
[1754546272402,0.9211,3686.7,3686.6,1.6887]
[1754546273018,1.2297,3686.7,3686.6,1.6887]
[1754546273916,1.429,3686.7,3686.6,1.6887]
[1754546277114,1.7374,3686.7,3686.6,1.6887]
[1754546277706,3.48675595,3686.7,3686.6,1.6887]
[1754546278816,1.4288,3686.5,3686.0,0.2837]
[1754546279013,3.46885595,3686.2,3686.1,0.7856]
[1754546279218,21.89785595,3686.2,3686.1,0.7856]
[1754546279517,21.89785595,3686.2,3686.1,0.3045]
[1754546279705,21.89785595,3686.2,3686.1,0.5868]
[1754546280210,21.89785595,3686.2,3686.1,1.2055]
[1754546280418,20.86675595,3686.2,3686.0,0.3045]
[1754546280611,1.7195,3686.1,3686.0,1.3931]
[1754546280811,1.7195,3686.1,3686.0,1.6767]
[1754546287928,0.6934,3686.0,3685.9,0.9713]
[1754546288133,19.4231,3686.0,3685.9,1.6767]
[1754546288532,20.1485,3686.0,3685.9,1.6767]
[1754546289529,20.1485,3686.0,3685.8,0.54251]
[1754546289734,19.5421,3686.0,3685.9,1.6767]
[1754546290033,19.8428,3686.0,3685.9,1.6767]
[1754546290430,20.1485,3686.0,3685.9,1.6767]
[1754546294035,20.1485,3686.0,3685.9,2.2192]
[1754546294634,19.8428,3686.0,3685.9,2.2192]
[1754546296342,20.1485,3686.0,3685.9,2.2192]
[1754546297140,19.8428,3686.0,3685.9,2.2192]
[1754546297740,18.8167,3686.0,3685.9,2.2192]
[1754546298135,18.63,3686.0,3685.9,2.2192]
[1754546299041,0.7254,3686.2,3685.9,2.2192]
[1754546299042,18.43,3686.1,3685.9,2.2192]
[1754546299247,18.43,3686.1,3686.0,1.4891]
[1754546299440,18.43,3686.1,3686.0,1.6767]
[1754546299737,18.8598,3686.1,3686.0,1.6767]
[1754546301041,19.0608,3686.1,3686.0,1.6767]
[1754546301242,19.3564,3686.1,3686.0,1.6767]
[1754546301538,19.8438,3686.1,3686.0,1.6767]
[1754546302546,18.631,3686.1,3686.0,1.6767]
[1754546303141,0.4298,3686.7,3686.4,0.9504]
[1754546303443,19.0598,3686.7,3686.6,1.49279]
[1754546303644,40.8,3686.8,3686.6,2.21909]
[1754546303848,59.229,3686.8,3686.6,1.21049]
[1754546304149,59.9544,3686.8,3686.7,1.6767]
[1754546304939,40.8,3686.8,3686.7,1.6767]
[1754546305145,1.4138,3687.1,3687.0,1.6767]
[1754546305336,19.8428,3687.1,3687.0,1.6767]
[1754546305541,60.9485,3687.1,3687.0,1.6767]
[1754546308449,42.2138,3687.1,3687.0,1.6767]
[1754546308643,40.056,3688.0,3687.4,0.54228]
[1754546308843,1.7243,3687.5,3687.4,1.91448]
[1754546309146,19.8418,3687.5,3687.4,1.91448]
[1754546309347,19.8418,3687.5,3687.4,2.22438]
[1754546309645,41.2422,3687.8,3687.7,0.54223]
[1754546309849,60.98771722,3687.8,3687.7,1.731]
[1754546311345,60.2715,3687.8,3687.7,1.731]
[1754546311548,59.961,3687.8,3687.7,1.731]
[1754546311747,59.961,3687.8,3687.5,1.65686]
[1754546311748,1.7336,3687.6,3687.5,1.65686]
[1754546311947,1.7336,3687.6,3687.5,1.96336]
[1754546312343,1.7336,3687.6,3687.5,2.27326]
[1754546312544,20.1596,3687.6,3687.5,1.731]
[1754546314647,42.54935595,3687.8,3687.5,1.731]
[1754546314847,41.534,3687.8,3687.7,1.731]
[1754546315046,59.959,3687.8,3687.7,1.731]
[1754546315450,60.2695,3687.8,3687.7,1.731]
[1754546316941,62.01885595,3687.8,3687.7,1.731]
[1754546317346,59.225,3687.8,3687.7,1.731]
[1754546317542,59.6672,3687.8,3687.7,1.731]
[1754546317746,59.959,3687.8,3687.7,1.731]
[1754546317948,60.2695,3687.8,3687.7,1.731]
[1754546318146,62.01885595,3687.8,3687.7,1.731]
[1754546329250,1.0,3688.0,3687.9,0.9118]
[1754546329450,1.4422,3688.0,3687.9,1.731]
[1754546329656,4.48295595,3688.0,3687.9,1.731]
[1754546329859,1.7336,3687.7,3687.6,1.731]
[1754546330158,3.48295595,3687.7,3687.6,1.731]
[1754546330357,1.7336,3687.7,3687.6,1.731]
[1754546330659,1.4231,3687.7,3687.6,1.731]
[1754546331652,0.1938,3687.7,3687.6,2.75295595]
[1754546331853,2.7336,3688.0,3687.9,1.731]
[1754546335261,2.7336,3688.0,3687.9,1.3101]
[1754546336657,2.7336,3688.0,3687.9,1.731]
[1754546340061,4.48295595,3688.0,3687.9,1.731]
[1754546342266,4.48295595,3688.0,3687.9,1.5274]
[1754546342860,4.48295595,3688.0,3687.9,1.7194]
[1754546343063,4.48295595,3688.0,3687.9,1.5274]
[1754546343259,0.7346,3687.9,3687.1,0.4381]
[1754546343461,0.2975,3687.1,3686.6,2.71402762]
[1754546343668,3.47375595,3686.8,3686.7,1.7614]
[1754546343968,21.89075595,3686.8,3686.7,1.7614]
[1754546344267,0.2991,3686.8,3686.7,1.7614]
[1754546344457,1.95405595,3687.4,3687.3,1.0132]
[1754546344766,60.337,3687.4,3687.3,1.7614]
[1754546347966,60.6439,3687.4,3687.3,1.7614]
[1754546349166,59.9113,3687.4,3687.3,1.7614]
[1754546349560,41.92,3687.4,3687.3,1.7614]
[1754546349759,60.339,3687.4,3687.3,1.7614]
[1754546349958,60.6459,3687.4,3687.3,1.7614]
[1754546350362,60.339,3687.4,3687.3,1.7614]
[1754546350759,3.78145595,3688.0,3687.7,0.54223]